Cogmind - Beta 16 @@@ ROGUE MODE // 2025.11.12 @ 12:51:27 Player: Lazz Result: Destroyed by C-35 Carver with Carbide Saw Performance ------------- Evolutions (5) 2500 Regions Visited (5) 1000 Robots Destroyed (32) 160 Value Destroyed (1248) 1248 Prototype IDs (19) 380 Alien Tech Used (0) 0 Bonus (300) 300 TOTAL SCORE: 5588 Bonus ------- Registered with UFD 300 Cogmind --------- Core Integrity 0/1000 Matter 252/300 Energy 84/100 System Corruption 9% Temperature Cool (9) Movement Core (1350) Ox26 Location -5/Factory Parts ------- > --- POWER (2) -------- (None) > --- PROPULSION (4) --- (None) > --- UTILITY (8) ------ Huge Storage Unit Machine Analyzer Improved Signal Interpreter > --- WEAPON (3) ------- (None) > --- INVENTORY (25) --- Armored Medium Treads Advanced Heat Sink Small Storage Unit Advanced Terrain Scanner Peak State ------------ > --- POWER ------------ Improved Deuterium Engine Improved Deuterium Engine > --- PROPULSION ------- Spiked Treads Medium Treads Medium Treads Overtuned Medium Treads > --- UTILITY ---------- Improved Heat Sink Large Storage Unit Improved Signal Interpreter Active Sensor Suite Scrapoid Pod > --- WEAPON ----------- Overtuned Beamcaster Overtuned Beamcaster Barrage Gun > --- INVENTORY -------- Improved Deuterium Engine Small Storage Unit Advanced Terrain Scanner Force Rifle Subdweller Beam Cannon Assault Cannon [Rating: 87] Favorites ----------- Power Improved Deuterium Engine Engine Improved Deuterium Engine Power Core Micro Fission Core Propulsion Light Treads Treads Light Treads Leg Aluminum Leg Wheel Subdweller Monowheel Utility Large Storage Unit Device Subdweller Optics Storage Large Storage Unit Processor Improved Signal Interpreter Weapon Barrage Gun Energy Gun Overtuned Beamcaster Energy Cannon Powered Cannon Ballistic Gun Barrage Gun Ballistic Cannon Assault Cannon Special Weapon Improved Remote Datajack Build | -11 -10 -10 -7 -7 -5 ------- Run | Yrd Mat Sub Rec Scr Fac Slots Evolved 10 | . . . . . 10 Power 1 | . . . . . 1 Propulsion 2 | . . . . . 2 Utility 6 | . . . . . 6 Weapon 1 | . . . . . 1 Parts Attached 52 | 7 4 12 4 5 20 Power 10 | 1 1 2 1 1 4 Engine 8 | 1 1 2 1 1 2 Core 2 | . . . . . 2 Reactor . | . . . . . . Propulsion 13 | 2 2 3 2 3 1 Treads 6 | . . 3 . 3 . Leg 5 | 2 2 . . . 1 Wheel 2 | . . . 2 . . Hover . | . . . . . . Flight . | . . . . . . Utility 11 | 2 . 2 1 1 5 Device 6 | 1 . 2 . 1 2 Storage 3 | 1 . . 1 . 1 Processor 2 | . . . . . 2 Hackware . | . . . . . . Protection . | . . . . . . Artifact . | . . . . . . Weapon 18 | 2 1 5 . . 10 Energy Gun 7 | 1 1 1 . . 4 Energy Cannon 4 | . . 2 . . 2 Ballistic Gun 4 | 1 . 2 . . 1 Ballistic Cannon 2 | . . . . . 2 Launcher . | . . . . . . Special Weapon 1 | . . . . . 1 Impact Weapon . | . . . . . . Slashing Weapon . | . . . . . . Piercing Weapon . | . . . . . . Special Melee Weapon . | . . . . . . Unidentified Prototypes 1 | . . . . . 1 Parts Lost 31 | . 1 6 . . 24 Power 7 | . 1 2 . . 4 Propulsion 7 | . . 2 . . 5 Utility 4 | . . . . . 4 Weapon 13 | . . 2 . . 11 Highest Loss Streak 21 | . 1 3 . . 21 To Critical Strikes 3 | . . . . . 3 Average Backups 7 | 2 5 6 6 11 5 Power . | . 1 . . 1 . Propulsion 1 | 1 2 1 . 1 . Utility 3 | . . 2 3 4 1 Weapon 2 | . 1 2 1 3 2 Tool/Special . | . . . . . . Unused Backups 9 | . . 3 . 3 3 Power . | . . . . . . Propulsion 4 | . . 2 . 1 1 Utility 3 | . . . . 1 2 Weapon 2 | . . 1 . 1 . Tool/Special . | . . . . . . Average Slot Usage (%) 87 | . 100 78 98 100 61 Engine 11 | . 14 10 13 14 7 Treads 13 | . . 25 1 7 15 Leg 1 | . 28 . . . . Wheel 10 | . . . 26 20 . Device 12 | . 14 9 14 14 12 Storage 12 | . 14 12 14 14 3 Energy Gun 3 | . 14 5 . . 6 Energy Cannon 2 | . . 7 . . . Ballistic Gun 16 | . 14 5 27 28 5 Peak Build Rating 87 | 7 7 21 16 28 87 Average Rating 21 | 5 6 15 13 19 64 On Entrance 11 | . 7 7 9 16 28 Avg Prop Armor Cover (%) 5 | . . . 13 5 5 Naked Turns . | . . . . . . Heaviest Build 68 | 12 13 20 39 39 68 Greatest Support 101 | 20 20 40 36 56 101 Greatest Overweight (x) 8 | 1 . . 1 2 8 Average Overweight (x) . | . . . . 1 . Largest Inventory Capacity 25 | 8 8 8 15 15 25 Average Capacity 11 | 7 8 8 13 15 12 Most Carried 15 | 5 7 8 8 15 12 Average Carried 8 | 2 5 6 6 11 5 Final Capacity 25 | 8 8 8 15 15 25 Final Carried 15 | 5 7 7 8 15 4 Class Distribution -------------------- 86% | Mutant 7% | Derelict-Skirmisher 4% | Derelict-Mutant Dominant Class ---------------- Mutant | -10/Materials Mutant | -10/Subcaves Mutant | -7/Recycling Mutant | -7/Scraptown Derelict-Skirmisher | -5/Factory Resources | -11 -10 -10 -7 -7 -5 ----------- Run | Yrd Mat Sub Rec Scr Fac Matter Collected 962 | 285 24 237 75 40 301 Remotely . | . . . . . . Salvage Created 1336 | 91 222 360 64 . 599 Parts 73 | 5 12 24 2 . 30 Haulers Intercepted . | . . . . . . Recyclers Shooed . | . . . . . . Parts Field Recycled . | . . . . . . Retrieved Matter . | . . . . . . Parts Self-Destructed 10 | . . 10 . . . Prevented 1 | . . 1 . . . Parts Restored . | . . . . . . Kills | -11 -10 -10 -7 -7 -5 ------- Run | Yrd Mat Sub Rec Scr Fac Combat Hostiles Destroyed 28 | . 7 10 . . 11 Guns 18 | . 7 6 . . 5 Cannons 4 | . . 3 . . 1 AOE 5 | . . . . . 5 Classes Destroyed 10 | 2 3 1 . . 4 Worker 2 | . 1 . . . 1 Tunneler 1 | 1 . . . . . Recycler 1 | 1 . . . . . Swarmer 5 | . 3 2 . . . Grunt 8 | . 4 . . . 4 Brawler 1 | . . . . . 1 Hunter 1 | . . . . . 1 Programmer 4 | . . . . . 4 Heavy 1 | . . . . . 1 Subdweller 8 | . . 8 . . . Best Kill Streak 6 | 2 4 2 . . 6 Combat Bots Only 6 | . 3 2 . . 6 Max Kills in Single Turn 6 | 1 1 1 . . 6 Gunslinging . | . . . . . . Exploded 5 | . . . . . 5 Melee . | . . . . . . Uniques/NPCs Destroyed . | . . . . . . Combat | -11 -10 -10 -7 -7 -5 -------- Run | Yrd Mat Sub Rec Scr Fac Hostile Shots Fired 411 | . 53 89 . . 269 Missed 104 | . 19 23 . . 62 Hits 307 | . 34 66 . . 207 Melee 3 | . . . . . 3 Projectile 304 | . 34 66 . . 204 Critical Strikes 16 | . . 5 . . 11 Part Disruptions 2 | . . . . . 2 Damage Taken 5100 | . 325 934 . . 3841 Core 1168 | . 74 85 . . 1009 Absorbed by Shields . | . . . . . . Core Remaining (%) 68 | 100 . . . 36 . Volleys Fired 106 | 5 24 44 2 . 31 Largest 3 | 2 2 2 2 . 3 Hottest 228 | 60 70 130 58 . 228 Shots Fired 184 | 10 48 67 4 . 55 Gun 152 | 10 48 44 4 . 46 Cannon 31 | . . 23 . . 8 Launcher . | . . . . . . Special 1 | . . . . . 1 Kinetic 82 | 5 24 19 4 . 30 Thermal 85 | 5 24 33 . . 23 Explosive . | . . . . . . Electromagnetic 16 | . . 15 . . 1 Robot Hit Streak 26 | 3 5 26 3 . 14 Robot Miss Streak 6 | 1 6 3 2 . 2 Penetration Max . | . . . . . . Secondary Targets 4 | . . 2 . . 2 Max Gunslinging Chain 1 | . . 1 . . 1 Shots Hit Robots 113 | 8 27 37 2 . 39 Core Hits 50 | 3 12 13 1 . 21 Critical Kills 2 | . . 1 . . 1 Critical Parts Destroyed 1 | . 1 . . . . Critical Strikes 5 | . 1 1 . . 3 Burn 2 | . . . . . 2 Meltdown 1 | . . 1 . . . Destroy 2 | . 1 . . . 1 Melee Attacks . | . . . . . . Impact . | . . . . . . Slashing . | . . . . . . Piercing . | . . . . . . Sneak Attacks . | . . . . . . Combat Hostiles . | . . . . . . Follow-up Attacks . | . . . . . . Damage Inflicted 3868 | 92 365 999 38 . 2374 Guns 1839 | 92 365 355 38 . 989 Cannons 752 | . . 590 . . 162 Explosions 1272 | . . 54 . . 1218 Melee . | . . . . . . Ramming 5 | . . . . . 5 Kinetic 973 | 47 195 169 38 . 524 Thermal 2731 | 45 170 694 . . 1822 Explosive . | . . . . . . Electromagnetic 159 | . . 136 . . 23 Impact . | . . . . . . Slashing . | . . . . . . Piercing . | . . . . . . Highest Corruption 9 | . . . . . 9 Average Corruption 6 | . . . . . 6 Corruption Purged . | . . . . . . Corruption Blocked . | . . . . . . Effects 10 | . . . . . 10 Message Errors 5 | . . . . . 5 Energy Discharges 3 | . . . . . 3 Parts Rejected 1 | . . . . . 1 Data Loss (minor) 1 | . . . . . 1 Overload Shots . | . . . . . . Overflow Damage 97 | . . 4 . . 93 Projectiles 4 | . . 4 . . . Explosions 93 | . . . . . 93 Melee . | . . . . . . Knockbacks 1 | . . . . . 1 Impact 1 | . . . . . 1 Kinetic . | . . . . . . Secondary . | . . . . . . Self-Inflicted Damage 121 | . . . . . 121 Shots 2 | . . . . . 2 Rammed 1 | . . . . . 1 Targets Rammed 1 | . . . . . 1 Kicked . | . . . . . . Crushed . | . . . . . . Highest Temperature 464 | . 189 10 26 . 464 Average Temperature 126 | . 91 4 14 . 199 Received Heat Transfer 774 | . 102 195 . . 477 Effects 5 | . . . . . 5 Shutdowns 1 | . . . . . 1 Damage (major) 4 | . . . . . 4 Siege Activations . | . . . . . . Martial Activations . | . . . . . . Shielding Activations . | . . . . . . Robots Disrupted . | . . . . . . Combat Hostiles . | . . . . . . Robots Corrupted . | . . . . . . Combat Hostiles . | . . . . . . Parts Fried . | . . . . . . Impact Corruptions . | . . . . . . Robots Melted 1 | . . 1 . . . Combat Hostiles 1 | . . 1 . . . Parts Melted 6 | . 1 3 . . 2 Heat Transferred 2616 | 100 470 198 . . 1848 Parts Sabotaged . | . . . . . . Parts Stolen . | . . . . . . Parts Stripped . | . . . . . . Power Chain Reactions 1 | . . 1 . . . Alert | -11 -10 -10 -7 -7 -5 ------- Run | Yrd Mat Sub Rec Scr Fac Maximum Alert Level 1 | . . . . . 1 Low Security (%) 99 | 100 100 . 100 . 98 Level 1 . | . . . . . 1 Level 2 . | . . . . . . Level 3 . | . . . . . . Level 4 . | . . . . . . Level 5 . | . . . . . . High Security . | . . . . . . Max Security . | . . . . . . Peak Influence 336 | 5 111 . 70 . 336 Initial 17 | . . . 17 . . Average 28 | . 58 . 19 . 29 Influence Increases 1039 | 10 186 70 155 . 618 Destroy 0b10 Robot/C 400 | . 140 40 . . 220 Destroy 0b10 Robot/NC 25 | 10 5 . 5 . 5 Destroy Leader 70 | . 20 . . . 50 Successful Hack 5 | . 5 . . . . Select Force Hacks 150 | . . . 150 . . Disable Machine 75 | . . . . . 75 Destroy Structure 109 | . 1 . . . 108 Lose Combat Pursuer 105 | . 15 30 . . 60 Active Sensor Use 100 | . . . . . 100 Influence Decreases 713 | 10 110 109 158 34 292 Entered New Map 91 | . . 37 20 34 . Time Decay 362 | 10 100 32 138 . 82 Lost Part 260 | . 10 40 . . 210 Squads Dispatched 5 | . 1 . . . 4 Investigation 3 | . 1 . . . 2 Extermination 1 | . . . . . 1 Reinforcement 1 | . . . . . 1 Assault . | . . . . . . Garrison . | . . . . . . Intercept . | . . . . . . Searches Triggered . | . . . . . . Construction Impeded . | . . . . . . Haulers Reinforced . | . . . . . . Active Scanning Responses 1 | . . . . . 1 Cargo Convoy Interrupts . | . . . . . . Stealth | -11 -10 -10 -7 -7 -5 --------- Run | Yrd Mat Sub Rec Scr Fac Distress Signals 3 | . 1 . . . 2 Communications Jammed . | . . . . . . Distress Signals . | . . . . . . Times Spotted 52 | . 9 14 . . 29 Peak Tracking Total 10 | . 5 4 . . 10 Tactical Retreats 3 | . 1 1 . . 1 Traps | -11 -10 -10 -7 -7 -5 ------- Run | Yrd Mat Sub Rec Scr Fac Traps Triggered 1 | . . . . . 1 Indirectly . | . . . . . . Trap Hack Attempts . | . . . . . . Triggered . | . . . . . . Disarmed . | . . . . . . Reprogrammed . | . . . . . . Reused . | . . . . . . Traps Extracted . | . . . . . . Installed . | . . . . . . Triggered . | . . . . . . Machines | -11 -10 -10 -7 -7 -5 ---------- Run | Yrd Mat Sub Rec Scr Fac Machines Disabled 7 | . . 2 . . 5 Max in Single Turn 5 | . . 1 . . 5 Machines Repaired . | . . . . . . Machines Dismantled . | . . . . . . Machines Sabotaged . | . . . . . . Overloaded Fab Kills . | . . . . . . Hacking | -11 -10 -10 -7 -7 -5 --------- Run | Yrd Mat Sub Rec Scr Fac Machines Accessed 14 | . 2 1 8 2 1 Terminals 6 | . 2 . 3 . 1 Fabricators . | . . . . . . Repair Stations . | . . . . . . Recycling Units 5 | . . . 5 . . Scanalyzers . | . . . . . . Garrison Access . | . . . . . . Total Hacks 41 | . 3 9 18 8 3 Successful 26 | . 1 9 8 8 . Failed 15 | . 2 . 10 . 3 Catastrophic 3 | . 1 . 2 . . Database Lockouts . | . . . . . . Manual 11 | . . . 9 . 2 Terminals 12 | . 3 . 6 . 3 Fabricators . | . . . . . . Repair Stations . | . . . . . . Recycling Units 12 | . . . 12 . . Scanalyzers . | . . . . . . Garrison Access . | . . . . . . Terminal Hacks 19 | . 1 9 1 8 . Record 16 | . . 8 . 8 . Robot Analysis 1 | . . . 1 . . Zone Layout 1 | . 1 . . . . Proto ID Catalog 1 | . . 1 . . . Fabricator Hacks . | . . . . . . Repair Station Hacks . | . . . . . . Recycling Unit Hacks 1 | . . . 1 . . Retrieve Components 1 | . . . 1 . . Scanalyzer . | . . . . . . Garrison Access Hacks . | . . . . . . Unauthorized Hacks 6 | . . . 6 . . Terminals . | . . . . . . Fabricators . | . . . . . . Repair Stations . | . . . . . . Recycling Units 6 | . . . 6 . . Recyclers 1 | . . . 1 . . Tunnel 5 | . . . 5 . . Scanalyzers . | . . . . . . Garrison Access . | . . . . . . Data Cores Recovered . | . . . . . . Used . | . . . . . . Hacking Detections 7 | . 1 . 5 . 1 Full Trace Events 2 | . 1 . . . 1 Feedback Events . | . . . . . . Feedback Blocked . | . . . . . . Robot Schematics Acquired . | . . . . . . Robots Built . | . . . . . . Authchips . | . . . . . . Time . | . . . . . . Total Robot Build Rating . | . . . . . . Part Schematics Acquired . | . . . . . . Parts Built . | . . . . . . Authchips . | . . . . . . Time . | . . . . . . Total Part Build Rating . | . . . . . . Part Studies Acquired . | . . . . . . Parts Repaired . | . . . . . . Time . | . . . . . . Parts Recycled . | . . . . . . Recycled Matter . | . . . . . . Retrieved Matter . | . . . . . . Retrieved Components 1 | . . . 1 . . Parts Scanalyzed . | . . . . . . Part Schematics Acquired . | . . . . . . Parts Damaged . | . . . . . . Bothacking | -11 -10 -10 -7 -7 -5 ------------ Run | Yrd Mat Sub Rec Scr Fac Used RIF Installer . | . . . . . . Robots Hacked 1 | . . . . . 1 Non-combat . | . . . . . . Combat 1 | . . . . . 1 Robot Hacks Applied 1 | . . . . . 1 parse_system 1 | . . . . . 1 Relay Couplers Released . | . . . . . . Fabnet Peak Effective % . | . . . . . . Robots Rewired . | . . . . . . Allies Hacked . | . . . . . . Hacks Repelled . | . . . . . . Allies | -11 -10 -10 -7 -7 -5 -------- Run | Yrd Mat Sub Rec Scr Fac Total Allies . | . . . . . . Largest Group . | . . . . . . Highest-Rated Group . | . . . . . . Highest-Rated Ally . | . . . . . . Total Orders . | . . . . . . Ally Attacks . | . . . . . . Total Damage . | . . . . . . Kills . | . . . . . . Allies Corrupted . | . . . . . . Allies Melted . | . . . . . . Intel | -11 -10 -10 -7 -7 -5 ------- Run | Yrd Mat Sub Rec Scr Fac Active Infowar (turns) 3791 | 24 220 1197 534 1386 430 Optics 2253 | . . 333 534 1386 . A.S.S. 348 | . . . . . 348 Seismic 1108 | 24 220 864 . . . Machine Analysis 82 | . . . . . 82 Robot Analysis Total 1 | . . . 1 . . Derelict Logs Recovered 5 | . . 1 . 4 . Drone Launches . | . . . . . . Drone Recoveries . | . . . . . . Exploration | -11 -10 -10 -7 -7 -5 ------------- Run | Yrd Mat Sub Rec Scr Fac Turns Passed 4589 | 94 220 1693 534 1562 486 Spaces Moved 2977 | 55 99 964 458 1141 260 Core 108 | 5 . . . . 103 Treads 1365 | . . 958 3 253 151 Legs 161 | 50 99 6 . . 6 Wheels 1343 | . . . 455 888 . Hover . | . . . . . . Flight . | . . . . . . Fastest Speed 50 | 50 120 120 105 117 50 Average Speed 137 | 115 120 159 107 134 128 Slowest Speed 450 | 120 120 160 160 260 450 Overloaded Moves . | . . . . . . Propulsion Burnouts . | . . . . . . Robots Hopped . | . . . . . . Potential Cave-ins 2 | . . 2 . . . Cave-ins Triggered . | . . . . . . Exploration Rate (%) 40 | 5 21 46 81 83 9 Regions Visited 5 Branch Regions 3 Pre-discovered Areas 8 | . . . 5 3 . Known Exits Taken . | . . . . . . Unknown Exits Taken 5 | 1 1 1 1 1 . Scrap Searched 7 | . . 2 . 5 . Spaces Dug 3 | . . 3 . . . Terrain Destroyed 60 | . . 9 . . 51 Melee . | . . . . . . Projectile 5 | . . 3 . . 2 AOE 55 | . . 6 . . 49 Terrain Rammed . | . . . . . . Walls Destroyed . | . . . . . . Machines Disabled . | . . . . . . Actions | -11 -10 -10 -7 -7 -5 --------- Run | Yrd Mat Sub Rec Scr Fac Total 3311 | 72 151 1057 496 1171 364 Wait 105 | . 21 16 28 . 40 Move 2972 | 54 98 963 457 1140 260 Hop . | . . . . . . Pick Up 37 | 6 2 9 1 13 6 Fast Attach 19 | 6 . 1 1 . 11 Attach 26 | 1 1 5 3 3 13 Detach 3 | . . 2 1 . . Swap 18 | . 3 7 3 4 1 Drop 24 | . 2 10 . 11 1 Fire 106 | 5 24 44 2 . 31 Melee . | . . . . . . Ram 1 | . . . . . 1 Kick . | . . . . . . Crush . | . . . . . . Escape Stasis . | . . . . . . Rewire . | . . . . . . Trap . | . . . . . . Miscellaneous . | . . . . . . Route ------- -11/Scrapyard -10/Materials -10/Subcaves (discovered 2 exits: [*Mat] / *Rec) -7/Recycling (discovered 2 exits: *Fac / *Scr) -7/Scraptown (discovered 2 exits: *Fac x2) -5/Factory History --------- Turn | Location | Event 3 | -11/Scrapyard | Discovered new exit (range 16) 95 | -11/Scrapyard | Entered Materials 307 | -10/Materials | Discovered new exit (range 4) 315 | -10/Materials | Entered Subcaves 316 | -10/Subcaves | Ambushed by Subdwellers from Twisted Machinery 316 | -10/Subcaves | Approached by a straggling Scientist 612 | -10/Subcaves | Build established: Mutant 645 | -10/Subcaves | Visited 4L-MR0's lab 664 | -10/Subcaves | Found Powered Cannon 668 | -10/Subcaves | Attached Powered Cannon, gained temporary slot: Power 896 | -10/Subcaves | Shifting Twisted Machinery released Sub. Machine Gun 957 | -10/Subcaves | Discovered new exit (range 8) 968 | -10/Subcaves | Shifting Twisted Machinery released Mak. Hacking Suite 1026 | -10/Subcaves | Shifting Twisted Machinery released Flamer 1121 | -10/Subcaves | Shifting Twisted Machinery released Spk. Treads 1660 | -10/Subcaves | Ambushed by Subdweller buried in earth 1997 | -10/Subcaves | Discovered new exit (range 8) 2000 | -10/Subcaves | Core integrity fell below 50% 2008 | -10/Subcaves | Entered Recycling 2034 | -7/Recycling | Lost 3 parts (1p1n1w) 2460 | -7/Recycling | Discovered new exit (range 20) 2509 | -7/Recycling | Scanned before Scraplab entrance 2528 | -7/Recycling | Entered Scraplab 2539 | -7/Recycling | Discovered new exit (range 4) 2542 | -7/Recycling | Entered Scraptown 2952 | -7/Scraptown | Visited UFD Registry 2981 | -7/Scraptown | Visited Red Mages 3043 | -7/Scraptown | Visited Symbiants 3079 | -7/Scraptown | Visited Assassins FH 3129 | -7/Scraptown | Scanned Subdweller tech in exchange for log data 3131 | -7/Scraptown | Learned Factory emergency access door positions 3133 | -7/Scraptown | Learned location of Armory (-3) 3303 | -7/Scraptown | Visited SPCMW 3346 | -7/Scraptown | Visited Fellowship of the Rings 3384 | -7/Scraptown | Discovered new exit (range 13) 3540 | -7/Scraptown | Visited Shadow of the Wyrm 3588 | -7/Scraptown | Registered with UFD as "Hardbank" 3632 | -7/Scraptown | Visited Modified Component R&D 3702 | -7/Scraptown | Visited Chapter 10 3753 | -7/Scraptown | Visited Infowarlord's Domain 3764 | -7/Scraptown | Found Active Sensor Suite 3795 | -7/Scraptown | Visited Junk Repository 3820 | -7/Scraptown | Visited Research Penetration Think Tank 3861 | -7/Scraptown | Visited DA-N13 Charitable Foundation 3867 | -7/Scraptown | Found DCF Scrap (27 items) 3927 | -7/Scraptown | Visited Scrapoid Pod Storage 3937 | -7/Scraptown | Found Scrapoid Pod 4096 | -7/Scraptown | Discovered new exit (range 5) 4104 | -7/Scraptown | Entered Factory 4104 | -5/Factory | Evolved 10 slots: Power x1, Propulsion x2, Utility x6, Weapon x1 4392 | -5/Factory | Build established: Derelict-Skirmisher 4504 | -5/Factory | Core integrity fell below 50% 4541 | -5/Factory | Lost 21 parts (4p5n4u8w) 4585 | -5/Factory | Core integrity fell below 20% 4590 | -5/Factory | Destroyed by C-35 Carver with Carbide Saw Last Messages --------------- 04584_ Fusion Modulator explodes. 04584_ Mass Driver destroyed. 04584_ Destroyed Mass Driver. 04584_ Proton Cannon destroyed. 04584_ Destroyed Proton Cannon. 04584_ Destroyed Imp. Treads. 04584_ Destroyed Adv. Heat Sink. 04584_ G-50 Soldier destroyed. 04584_ Penetrated by Slug. 04585_ W-25 Informer sends out distress signal. 04585_ U-05 Engineer lays Concrete. 04585_ K-01 Serf collects debris. 04586_ Y-64 Sentinel heat short circuits Neutrino Core. 04586_ Proton Cannon destroyed. 04586_ U-05 Engineer lays Concrete. 04587_ Penetrated by Slug. 04589_ Acquired Huge Storage Unit. 04590_ System corrupted: Component data lost. 04590_ Slug penetrates C-35 Carver. Map ----- +----------------------------------------------------+ | " #??????????????# ! #???"""????????? | | " #??????????????+ #???"""????????? | | " #??????????????# #??????????????? | | " #??????????????# ##### #??????????????? | | " #??????????????# #???# ###+##?????????? | | " #??????????????## ##???# #?????????? | | " #???????????????# #????# #?????????? | | " #???????????????# #??##" #?????????? | | " #???????????????+ ###"""""""# #?????????? | | #???????????????# ## % "" ##????????? | | ####???????????????# ?#" %= "] ##### | | ???????????????????# ?# " | | ???????????????????# ?# g + | | ???????????????????# ## % % | | ?????????????????????? ?# =%! = #####! | | ??????????????????????? ?# = #/###????????? | | ??????????????????????? # #????????? | | ???????????????????????? #R #????????? | | ?????????????????????????" Y #????????? | | ??????????????????########; #????????? | | ??????????????????# #????????? | | ????????????# ???# R #????????? | | ????????????+ # ]% #????????? | | ????????????# ; ;] " #????????? | | ????????????# # ! !!ccc " #????????? | | ????????????# ????# !! @# ""#####????????? | | ??????????????????# !! #"""""""""#????????????? | | ??????????????????# + ??????????? | | ??????????????????# ##### ?????????? | | ?????????????????t; #???? ?????????? | | ??????????????? #########????? ?????????? | | ????????????? ?????????????? ??????????? | | ????????????u ???????????????? ??????????? | | ?????????????###????????????????? ???????????? | | ??????????????????????????????????##?????????????? | | ?????????????????????????????????????????????????? | | ?????????????????????????????????????????????????? | | ?????????????????????????????????????????????????? | | ?????????????????????????????????????????????????? | | ?????????????????????????????????????????????????? | | ?????????????????????????????????????????????????? | | ?????????????????????????????????????????????????? | | ?????????????????????????????????????????????????? | | ?????????????????????????????????????????????????? | | ?????????????????????????????????????????????????? | | ?????????????????????????????????????????????????? | | ?????????????????????????????????????????????????? | | ??????"""????????????????????????????????????????? | | ??????"T"????????????????????????????????????????? | | ??????"?"????????????????????????????????????????? | +----------------------------------------------------+ Best States ------------- Heat Dissipation 54 Energy Generation 27 Energy Capacity 480 Matter Stores 300 Matter Capacity 300 Sight Range 21 Robot Scan Range 20 Terrain Scan Density 10 Evasion (%) 55 Recoil Reduction 4 Item Schematics ----------------- None Robot Schematics ------------------ None Fabricated ------------ Nothing Repaired ---------- Nothing Studied --------- None Alien Tech Used ----------------- None Achievements -------------- None Challenges ------------ None Game ------ Seed VoltaicBurstClaymores Manual? 0 Play Time 00:36:31 Cumulative 65.4 hours Start 2025.11.12 @ 10:31:54 End 2025.11.12 @ 12:51:27 Sessions 3 Manual Loads 0 Difficulty Rogue Special Mode None Game No. 89 Rogue 89 Adventurer 0 Explorer 0 Win Type - Total 1 Types 1/0/0/0/0/0/0/0/0/0 Lore% 40 Gallery% 44 Achievement% 31 Wizard Run 0 Options --------- Layout 2 ASCII 0 Keyboard 0 Movement Mouse Keybinds 0 Fullscreen 1 Font 24/Smallcaps Map View 50x44 Zoom Use 0% Tactical HUD 1 Map Filters NONE Filters NONE Steam 1 RUN: 3f0fae22-5e36-40a1-8549-12b99b2c9c5e